[Event "MČR v rapid šachu družstev 2019"]
[Site "Teplice, Czech Republic"]
[Date "2019.09.15"]
[Round "8.8"]
[White "Routner, Jakub"]
[Black "Kuba, Jindrich"]
[Result "1/2-1/2"]
[TimeControl "15 min. + 5s"]
[WhiteElo "2092"]
[BlackElo "2229"]

1. e4 {[%clk 00:15:09]} c5 {[%clk 00:15:09]} {[%emt 00:00:01]} 2. Nc3 {[%clk
00:15:13]} {[%emt 00:00:01]} e6 {[%clk 00:15:10]} {[%emt 00:00:04]} 3. g3
{[%clk 00:15:16]} {[%emt 00:00:02]} Nc6 {[%clk 00:15:14]} {[%emt 00:00:01]} 4.
Bg2 {[%clk 00:15:20]} {[%emt 00:00:01]} Nf6 {[%clk 00:15:15]} {[%emt 00:00:04]}
5. d3 {[%clk 00:15:24]} {[%emt 00:00:01]} Be7 {[%clk 00:15:16]} {[%emt
00:00:04]} 6. f4 {[%clk 00:15:26]} {[%emt 00:00:02]} d5 {[%clk 00:14:58]}
{[%emt 00:00:23]} 7. e5 {[%clk 00:15:28]} {[%emt 00:00:03]} Nd7 {[%clk
00:15:00]} {[%emt 00:00:03]} 8. Nf3 {[%clk 00:15:32]} {[%emt 00:00:01]} f6
{[%clk 00:14:40]} {[%emt 00:00:26]} 9. exf6 {[%clk 00:15:35]} {[%emt 00:00:02]}
Nxf6 {[%clk 00:14:42]} {[%emt 00:00:03]} 10. O-O {[%clk 00:15:36]} {[%emt
00:00:04]} O-O {[%clk 00:14:45]} {[%emt 00:00:03]} 11. h3 {[%clk 00:15:28]}
{[%emt 00:00:13]} a6 {[%clk 00:14:45]} {[%emt 00:00:04]} 12. Re1 {[%clk
00:15:31]} {[%emt 00:00:02]} Bd6 {[%clk 00:14:22]} {[%emt 00:00:28]} 13. Ne5
{[%clk 00:15:31]} {[%emt 00:00:06]} Bc7 {[%clk 00:14:22]} {[%emt 00:00:05]} 14.
Nxc6 {[%clk 00:15:24]} {[%emt 00:00:12]} bxc6 {[%clk 00:14:25]} {[%emt
00:00:01]} 15. Kh2 {[%clk 00:15:25]} {[%emt 00:00:04]} Qe8 {[%clk 00:13:40]}
{[%emt 00:00:50]} 16. Ne2 {[%clk 00:15:23]} {[%emt 00:00:07]} Qh5 {[%clk
00:13:19]} {[%emt 00:00:26]} 17. Ng1 {[%clk 00:15:23]} {[%emt 00:00:05]} Qxd1
{[%clk 00:12:56]} {[%emt 00:00:28]} 18. Rxd1 {[%clk 00:15:27]} {[%emt
00:00:01]} e5 {[%clk 00:12:59]} {[%emt 00:00:02]} 19. fxe5 {[%clk 00:15:27]}
{[%emt 00:00:05]} Bxe5 {[%clk 00:13:03]} {[%emt 00:00:01]} 20. Nf3 {[%clk
00:15:26]} {[%emt 00:00:06]} Bd6 {[%clk 00:13:07]} {[%emt 00:00:01]} 21. Bf4
{[%clk 00:15:19]} {[%emt 00:00:12]} Bxf4 {[%clk 00:12:56]} {[%emt 00:00:16]} 22.
gxf4 {[%clk 00:15:23]} {[%emt 00:00:01]} Nh5 {[%clk 00:13:00]} {[%emt
00:00:01]} 23. Re1 {[%clk 00:15:24]} {[%emt 00:00:04]} Ra7 {[%clk 00:12:25]}
{[%emt 00:00:40]} 24. Ne5 {[%clk 00:15:25]} {[%emt 00:00:03]} Bd7 {[%clk
00:11:54]} {[%emt 00:00:37]} 25. Nxd7 {[%clk 00:15:21]} {[%emt 00:00:10]} Rxd7
{[%clk 00:11:57]} {[%emt 00:00:02]} 26. Re6 {[%clk 00:15:24]} {[%emt 00:00:01]}
Rc7 {[%clk 00:11:26]} {[%emt 00:00:36]} 27. Rae1 {[%clk 00:15:17]} {[%emt
00:00:11]} Nxf4 {[%clk 00:11:26]} {[%emt 00:00:06]} 28. Re7 {[%clk 00:15:12]}
{[%emt 00:00:11]} Rxe7 {[%clk 00:10:42]} {[%emt 00:00:48]} 29. Rxe7 {[%clk
00:15:15]} {[%emt 00:00:02]} Rb8 {[%clk 00:10:40]} {[%emt 00:00:07]} 30. b3
{[%clk 00:15:15]} {[%emt 00:00:05]} Nxg2 {[%clk 00:07:56]} {[%emt 00:02:49]} 31.
Kxg2 {[%clk 00:15:19]} {[%emt 00:00:01]} c4 {[%clk 00:08:00]} {[%emt 00:00:01]}
32. Rc7 {[%clk 00:15:12]} {[%emt 00:00:12]} cxb3 {[%clk 00:07:57]} {[%emt
00:00:08]} 33. axb3 {[%clk 00:15:13]} {[%emt 00:00:04]} Rb6 {[%clk 00:07:48]}
{[%emt 00:00:14]} 34. Kf3 {[%clk 00:15:17]} {[%emt 00:00:01]} a5 {[%clk
00:07:23]} {[%emt 00:00:30]} 1/2-1/2

[Event "MČR v rapid šachu družstev 2019"]
[Site "Teplice, Czech Republic"]
[Date "2019.09.15"]
[Round "8.9"]
[White "Vykouk, Jan"]
[Black "Krejci, Jan"]
[Result "1/2-1/2"]
[TimeControl "15 min. + 5s"]
[WhiteElo "2428"]
[BlackElo "2496"]

1. e4 {[%clk 00:15:08]} {[%emt 00:00:01]} e5 {[%clk 00:15:10]} {[%emt
00:00:01]} 2. Nf3 {[%clk 00:15:11]} {[%emt 00:00:01]} Nc6 {[%clk 00:15:14]}
{[%emt 00:00:01]} 3. Bc4 {[%clk 00:15:15]} {[%emt 00:00:01]} Nf6 {[%clk
00:15:17]} {[%emt 00:00:01]} 4. d3 {[%clk 00:15:16]} {[%emt 00:00:04]} Bc5
{[%clk 00:15:21]} {[%emt 00:00:01]} 5. O-O {[%clk 00:15:11]} {[%emt 00:00:10]}
O-O {[%clk 00:15:15]} {[%emt 00:00:11]} 6. Nbd2 {[%clk 00:15:12]} {[%emt
00:00:03]} d6 {[%clk 00:15:13]} {[%emt 00:00:07]} 7. c3 {[%clk 00:15:14]}
{[%emt 00:00:03]} a6 {[%clk 00:15:15]} {[%emt 00:00:04]} 8. Bb3 {[%clk
00:15:09]} {[%emt 00:00:10]} Ba7 {[%clk 00:14:55]} {[%emt 00:00:25]} 9. h3
{[%clk 00:15:00]} {[%emt 00:00:14]} Ne7 {[%clk 00:14:54]} {[%emt 00:00:06]} 10.
Re1 {[%clk 00:15:03]} {[%emt 00:00:01]} Ng6 {[%clk 00:14:58]} {[%emt 00:00:02]}
11. Nf1 {[%clk 00:15:06]} {[%emt 00:00:02]} h6 {[%clk 00:14:47]} {[%emt
00:00:16]} 12. d4 {[%clk 00:15:06]} {[%emt 00:00:05]} Re8 {[%clk 00:14:05]}
{[%emt 00:00:47]} 13. Ng3 {[%clk 00:15:09]} {[%emt 00:00:02]} c6 {[%clk
00:14:09]} {[%emt 00:00:01]} 14. Bc2 {[%clk 00:15:08]} {[%emt 00:00:06]} Qc7
{[%clk 00:13:35]} {[%emt 00:00:39]} 15. Be3 {[%clk 00:15:10]} {[%emt 00:00:02]}
Bd7 {[%clk 00:13:13]} {[%emt 00:00:28]} 16. Qd2 {[%clk 00:15:12]} {[%emt
00:00:02]} d5 {[%clk 00:11:53]} {[%emt 00:01:25]} 17. Nxe5 {[%clk 00:13:19]}
{[%emt 00:01:59]} Nxe5 {[%clk 00:11:41]} {[%emt 00:00:17]} 18. dxe5 {[%clk
00:13:22]} {[%emt 00:00:02]} Bxe3 {[%clk 00:11:43]} {[%emt 00:00:03]} 19. Qxe3
{[%clk 00:13:17]} {[%emt 00:00:10]} Rxe5 {[%clk 00:10:05]} {[%emt 00:01:43]} 20.
f4 {[%clk 00:13:16]} {[%emt 00:00:06]} Re7 {[%clk 00:10:06]} {[%emt 00:00:03]}
21. e5 {[%clk 00:13:20]} {[%emt 00:00:02]} Nh7 {[%clk 00:10:10]} {[%emt
00:00:01]} 22. Qd3 {[%clk 00:11:03]} {[%emt 00:02:21]} Nf8 {[%clk 00:08:56]}
{[%emt 00:01:20]} 23. Nh5 {[%clk 00:11:07]} {[%emt 00:00:01]} Qb6+ {[%clk
00:08:44]} {[%emt 00:00:17]} 24. Kh2 {[%clk 00:11:11]} {[%emt 00:00:01]} Qf2
{[%clk 00:08:11]} {[%emt 00:00:37]} 25. f5 {[%clk 00:11:05]} {[%emt 00:00:11]}
Ree8 {[%clk 00:06:31]} {[%emt 00:01:45]} 26. Re2 {[%clk 00:09:01]} {[%emt
00:02:09]} Qh4 {[%clk 00:06:33]} {[%emt 00:00:02]} 27. Qf3 {[%clk 00:09:04]}
{[%emt 00:00:02]} Nh7 {[%clk 00:06:08]} {[%emt 00:00:31]} 28. Nf4 {[%clk
00:07:18]} {[%emt 00:01:50]} Ng5 {[%clk 00:05:46]} {[%emt 00:00:27]} 29. Qg4
{[%clk 00:06:19]} {[%emt 00:01:04]} Qxg4 {[%clk 00:05:46]} {[%emt 00:00:05]} 30.
hxg4 {[%clk 00:06:22]} {[%emt 00:00:02]} Rad8 {[%clk 00:05:37]} {[%emt
00:00:14]} 31. Rae1 {[%clk 00:06:17]} {[%emt 00:00:10]} Bc8 {[%clk 00:05:40]}
{[%emt 00:00:03]} 32. Nh3 {[%clk 00:05:39]} {[%emt 00:00:43]} d4 {[%clk
00:05:31]} {[%emt 00:00:14]} 33. Nxg5 {[%clk 00:05:23]} {[%emt 00:00:21]} hxg5
{[%clk 00:05:33]} {[%emt 00:00:03]} 34. Bb3 {[%clk 00:05:14]} {[%emt 00:00:14]}
dxc3 {[%clk 00:04:46]} {[%emt 00:00:53]} 35. bxc3 {[%clk 00:05:17]} {[%emt
00:00:01]} c5 {[%clk 00:04:47]} {[%emt 00:00:05]} 36. e6 {[%clk 00:05:06]}
{[%emt 00:00:16]} fxe6 {[%clk 00:04:49]} {[%emt 00:00:02]} 37. fxe6 {[%clk
00:05:08]} {[%emt 00:00:03]} Re7 {[%clk 00:04:49]} {[%emt 00:00:05]} 38. Re5
{[%clk 00:05:12]} {[%emt 00:00:02]} Rde8 {[%clk 00:03:36]} {[%emt 00:01:18]} 39.
Bd5 {[%clk 00:04:03]} {[%emt 00:01:13]} b6 {[%clk 00:03:16]} {[%emt 00:00:25]}
40. c4 {[%clk 00:03:35]} {[%emt 00:00:33]} g6 {[%clk 00:02:37]} {[%emt
00:00:43]} 41. Rxg5 {[%clk 00:02:48]} {[%emt 00:00:51]} Kg7 {[%clk 00:02:42]}
42. Rge5 {[%clk 00:02:50]} {[%emt 00:00:03]} b5 {[%clk 00:02:25]} {[%emt
00:00:22]} 43. Kg3 {[%clk 00:02:48]} {[%emt 00:00:07]} b4 {[%clk 00:02:12]}
{[%emt 00:00:19]} 44. Bc6 {[%clk 00:02:49]} {[%emt 00:00:03]} Rd8 {[%clk
00:02:09]} {[%emt 00:00:08]} 45. Rd5 {[%clk 00:02:05]} {[%emt 00:00:49]} Rf8
{[%clk 00:01:52]} {[%emt 00:00:22]} 46. Rxc5 {[%clk 00:01:08]} {[%emt
00:01:02]} Rxe6 {[%clk 00:01:56]} {[%emt 00:00:01]} 47. Rxe6 {[%clk 00:01:09]}
{[%emt 00:00:04]} Bxe6 {[%clk 00:02:00]} {[%emt 00:00:01]} 48. Bb7 {[%clk
00:00:58]} {[%emt 00:00:16]} Rd8 {[%clk 00:01:17]} {[%emt 00:00:48]} 49. Bxa6
{[%clk 00:00:55]} {[%emt 00:00:08]} Rd3+ {[%clk 00:01:21]} 50. Kf4 {[%clk
00:00:54]} {[%emt 00:00:06]} Ra3 {[%clk 00:01:13]} {[%emt 00:00:13]} 51. Rc7+
{[%clk 00:00:55]} {[%emt 00:00:05]} Kf8 {[%clk 00:01:02]} {[%emt 00:00:15]} 52.
Bc8 {[%clk 00:00:53]} {[%emt 00:00:06]} Bf7 {[%clk 00:00:46]} {[%emt 00:00:21]}
53. Rb7 {[%clk 00:00:27]} {[%emt 00:00:32]} Bxc4 {[%clk 00:00:39]} {[%emt
00:00:12]} 54. Rxb4 {[%clk 00:00:30]} {[%emt 00:00:02]} Bf7 {[%clk 00:00:22]}
{[%emt 00:00:21]} 55. Bb7 {[%clk 00:00:24]} {[%emt 00:00:11]} Rxa2 {[%clk
00:00:24]} {[%emt 00:00:04]} 56. Kg5 {[%clk 00:00:20]} {[%emt 00:00:09]} Kg7
{[%clk 00:00:27]} {[%emt 00:00:02]} 57. Bf3 {[%clk 00:00:22]} {[%emt 00:00:03]}
Ra5+ {[%clk 00:00:31]} {[%emt 00:00:02]} 58. Kf4 {[%clk 00:00:23]} {[%emt
00:00:03]} Ra7 {[%clk 00:00:35]} {[%emt 00:00:01]} 59. Rb7 {[%clk 00:00:11]}
{[%emt 00:00:17]} Rxb7 {[%clk 00:00:39]} {[%emt 00:00:01]} 60. Bxb7 {[%clk
00:00:15]} {[%emt 00:00:01]} Kf6 {[%clk 00:00:43]} {[%emt 00:00:01]} 61. g5+
{[%clk 00:00:19]} {[%emt 00:00:01]} Kg7 {[%clk 00:00:47]} {[%emt 00:00:01]} 62.
Ke5 {[%clk 00:00:22]} {[%emt 00:00:02]} Bb3 {[%clk 00:00:37]} {[%emt 00:00:15]}
63. Bd5 {[%clk 00:00:23]} {[%emt 00:00:04]} Bc2 {[%clk 00:00:35]} {[%emt
00:00:06]} 64. g3 {[%clk 00:00:25]} {[%emt 00:00:04]} 1/2-1/2

[Event "MČR v rapid šachu družstev 2019"]
[Site "Teplice, Czech Republic"]
[Date "2019.09.15"]
[Round "8.10"]
[White "Sorm, Daniel"]
[Black "Studnicka, Tomas"]
[Result "1/2-1/2"]
[TimeControl "15 min. + 5s"]
[WhiteElo "2313"]
[BlackElo "2379"]

1. d4 {[%clk 00:15:05]} {[%emt 00:46:45]} Nf6 {[%clk 00:15:05]} {[%emt
00:00:02]} 2. c4 {[%clk 00:15:05]} {[%emt 00:00:01]} g6 {[%clk 00:15:05]} 3.
Nc3 {[%clk 00:15:05]} {[%emt 00:00:03]} Bg7 {[%clk 00:15:05]} {[%emt 00:00:01]}
4. e4 {[%clk 00:15:05]} d6 {[%clk 00:15:05]} 5. f4 {[%clk 00:15:05]} {[%emt
00:00:10]} O-O {[%emt 00:00:05]} 6. Nf3 c5 {[%clk 00:15:05]} {[%emt 00:00:06]}
7. dxc5 {[%clk 00:15:05]} {[%emt 00:00:17]} Qa5 {[%clk 00:14:46]} {[%emt
00:00:45]} 8. Bd3 {[%clk 00:15:05]} {[%emt 00:00:06]} Qxc5 {[%clk 00:13:34]}
{[%emt 00:01:17]} 9. Qe2 {[%clk 00:15:04]} {[%emt 00:00:06]} Nc6 {[%clk
00:13:36]} {[%emt 00:00:03]} 10. Be3 {[%clk 00:15:06]} {[%emt 00:00:03]} Qh5
{[%clk 00:13:39]} {[%emt 00:00:02]} 11. h3 {[%clk 00:14:14]} {[%emt 00:00:57]}
Nb4 {[%clk 00:12:55]} {[%emt 00:00:49]} 12. O-O {[%clk 00:13:35]} {[%emt
00:00:43]} Nxd3 {[%clk 00:12:43]} {[%emt 00:00:18]} 13. Qxd3 {[%clk 00:13:38]}
{[%emt 00:00:02]} Be6 {[%clk 00:11:30]} {[%emt 00:01:18]} 14. Nd5 {[%clk
00:10:51]} {[%emt 00:02:52]} Nxd5 {[%clk 00:11:21]} {[%emt 00:00:14]} 15. cxd5
{[%clk 00:10:52]} {[%emt 00:00:04]} Bd7 {[%clk 00:11:25]} 16. Kf2 {[%clk
00:08:24]} {[%emt 00:02:34]} f5 {[%clk 00:10:19]} {[%emt 00:01:11]} 17. e5
{[%clk 00:08:09]} {[%emt 00:00:19]} dxe5 {[%clk 00:10:09]} {[%emt 00:00:16]} 18.
fxe5 {[%clk 00:07:24]} {[%emt 00:00:50]} f4 {[%clk 00:09:43]} {[%emt 00:00:31]}
19. Bd4 {[%clk 00:07:11]} {[%emt 00:00:18]} Bf5 {[%clk 00:09:20]} {[%emt
00:00:27]} 20. Qb3 {[%clk 00:06:32]} {[%emt 00:00:44]} Be4 {[%clk 00:08:29]}
{[%emt 00:00:57]} 21. Rfe1 {[%clk 00:05:10]} {[%emt 00:01:27]} Bxf3 {[%clk
00:08:07]} {[%emt 00:00:26]} 22. Qxf3 {[%clk 00:04:51]} {[%emt 00:00:24]} Qf5
{[%clk 00:08:09]} {[%emt 00:00:03]} 23. Rac1 {[%clk 00:04:25]} {[%emt
00:00:31]} Rac8 {[%clk 00:08:13]} {[%emt 00:00:02]} 24. Bc3 {[%clk 00:04:05]}
{[%emt 00:00:25]} Rc4 {[%clk 00:06:57]} {[%emt 00:01:20]} 25. Rcd1 {[%clk
00:03:52]} {[%emt 00:00:18]} b5 {[%clk 00:06:45]} {[%emt 00:00:17]} 26. a3
{[%clk 00:03:40]} {[%emt 00:00:17]} a5 {[%clk 00:06:30]} {[%emt 00:00:20]} 27.
Rd4 {[%clk 00:02:44]} {[%emt 00:01:01]} Rfc8 {[%clk 00:06:08]} {[%emt
00:00:27]} 28. Qe4 {[%clk 00:02:13]} {[%emt 00:00:36]} Qf7 {[%clk 00:05:27]}
{[%emt 00:00:46]} 29. Red1 {[%clk 00:01:47]} {[%emt 00:00:30]} g5 {[%clk
00:04:45]} {[%emt 00:00:47]} 30. Bxa5 {[%clk 00:01:21]} {[%emt 00:00:30]} Qh5
{[%clk 00:04:24]} {[%emt 00:00:26]} 1/2-1/2

[Event "MČR v rapid šachu družstev 2019"]
[Site "Teplice, Czech Republic"]
[Date "2019.09.15"]
[Round "8.11"]
[White "Sodoma, Jan"]
[Black "Strasil, Pavel"]
[Result "1/2-1/2"]
[TimeControl "15 min. + 5s"]
[WhiteElo "2358"]
[BlackElo "2097"]

1. Nf3 {[%clk 00:15:07]} {[%emt 00:00:02]} Nf6 {[%clk 00:15:06]} {[%emt
00:00:05]} 2. c4 {[%clk 00:15:11]} {[%emt 00:00:02]} e6 {[%clk 00:15:09]}
{[%emt 00:00:01]} 3. g3 {[%clk 00:15:13]} {[%emt 00:00:03]} d5 {[%clk
00:15:13]} {[%emt 00:00:02]} 4. Bg2 {[%clk 00:15:17]} {[%emt 00:00:01]} Be7
{[%clk 00:15:12]} {[%emt 00:00:05]} 5. O-O {[%clk 00:15:19]} {[%emt 00:00:02]}
O-O {[%clk 00:15:16]} {[%emt 00:00:02]} 6. d4 {[%clk 00:15:14]} {[%emt
00:00:10]} c5 {[%clk 00:15:15]} {[%emt 00:00:06]} 7. cxd5 {[%clk 00:14:24]}
{[%emt 00:00:55]} Nxd5 {[%clk 00:14:53]} {[%emt 00:00:28]} 8. Nc3 {[%clk
00:13:06]} {[%emt 00:01:23]} Nxc3 {[%clk 00:13:59]} {[%emt 00:00:59]} 9. bxc3
{[%clk 00:13:10]} {[%emt 00:00:01]} Nc6 {[%clk 00:14:02]} {[%emt 00:00:01]} 10.
Bf4 {[%clk 00:13:01]} {[%emt 00:00:13]} Qa5 {[%clk 00:12:29]} {[%emt 00:01:38]}
11. Qb3 {[%clk 00:12:56]} {[%emt 00:00:10]} cxd4 {[%clk 00:12:09]} {[%emt
00:00:26]} 12. cxd4 {[%clk 00:12:58]} {[%emt 00:00:02]} Qb4 {[%clk 00:11:11]}
{[%emt 00:01:03]} 13. Qe3 {[%clk 00:12:58]} {[%emt 00:00:05]} Rd8 {[%clk
00:10:14]} {[%emt 00:01:01]} 14. a3 {[%clk 00:12:55]} {[%emt 00:00:09]} Qa4
{[%clk 00:09:52]} {[%emt 00:00:28]} 15. Rfd1 {[%clk 00:12:42]} {[%emt
00:00:17]} Bf6 {[%clk 00:09:31]} {[%emt 00:00:27]} 16. Rd2 {[%clk 00:07:41]}
{[%emt 00:05:05]} Na5 {[%clk 00:08:42]} {[%emt 00:00:54]} 17. Rd3 {[%clk
00:06:27]} {[%emt 00:01:19]} Bd7 {[%clk 00:08:17]} {[%emt 00:00:30]} 18. Ne5
{[%clk 00:06:06]} {[%emt 00:00:26]} Bb5 {[%clk 00:08:08]} {[%emt 00:00:14]} 19.
Rdd1 {[%clk 00:05:25]} {[%emt 00:00:45]} Nc6 {[%clk 00:07:16]} {[%emt
00:00:58]} 20. Nxc6 {[%clk 00:02:55]} {[%emt 00:02:35]} Bxc6 {[%clk 00:07:18]}
{[%emt 00:00:02]} 21. Bxc6 {[%clk 00:02:58]} {[%emt 00:00:02]} Qxc6 {[%clk
00:07:18]} {[%emt 00:00:06]} 22. Rac1 {[%clk 00:03:01]} {[%emt 00:00:02]} Qa4
{[%clk 00:07:09]} {[%emt 00:00:13]} 23. Rd3 {[%clk 00:02:38]} {[%emt 00:00:28]}
Rxd4 {[%clk 00:06:25]} {[%emt 00:00:49]} 24. Rc7 {[%clk 00:02:38]} {[%emt
00:00:04]} Rad8 {[%clk 00:06:16]} {[%emt 00:00:14]} 25. Rxd4 {[%clk 00:02:28]}
{[%emt 00:00:15]} Bxd4 {[%clk 00:06:10]} {[%emt 00:00:11]} 26. Qf3 {[%clk
00:02:31]} {[%emt 00:00:02]} Bb6 {[%clk 00:04:15]} {[%emt 00:02:01]} 27. Rxb7
{[%clk 00:02:19]} {[%emt 00:00:17]} Qd1+ {[%clk 00:04:18]} {[%emt 00:00:01]} 28.
Kg2 {[%clk 00:02:23]} {[%emt 00:00:01]} Qd5 {[%clk 00:04:22]} {[%emt 00:00:01]}
29. Bc7 {[%clk 00:01:54]} {[%emt 00:00:35]} Bxc7 {[%clk 00:02:16]} {[%emt
00:02:11]} 30. Rxc7 {[%clk 00:01:57]} {[%emt 00:00:02]} Qxf3+ {[%clk 00:01:39]}
{[%emt 00:00:41]} 31. Kxf3 {[%clk 00:02:00]} {[%emt 00:00:02]} g5 {[%clk
00:01:38]} {[%emt 00:00:06]} 32. Rxa7 {[%clk 00:02:02]} {[%emt 00:00:02]} Rd1
{[%clk 00:01:39]} {[%emt 00:00:04]} 33. Rb7 {[%clk 00:01:13]} {[%emt 00:00:54]}
Ra1 {[%clk 00:01:30]} {[%emt 00:00:14]} 34. Rb3 {[%clk 00:01:16]} {[%emt
00:00:02]} Kg7 {[%clk 00:01:32]} {[%emt 00:00:04]} 35. g4 {[%clk 00:01:11]}
{[%emt 00:00:11]} Rh1 {[%clk 00:01:18]} {[%emt 00:00:18]} 36. Kg2 {[%clk
00:01:01]} {[%emt 00:00:15]} Ra1 {[%clk 00:01:22]} {[%emt 00:00:01]} 37. h3
{[%clk 00:01:02]} {[%emt 00:00:04]} h6 {[%clk 00:01:22]} {[%emt 00:00:06]} 38.
Kf3 {[%clk 00:01:06]} {[%emt 00:00:01]} f5 {[%clk 00:01:12]} {[%emt 00:00:15]}
39. gxf5 {[%clk 00:00:57]} exf5 {[%clk 00:01:17]} 40. e4 {[%clk 00:00:50]}
{[%emt 00:00:12]} fxe4+ {[%clk 00:00:53]} {[%emt 00:00:29]} 41. Kxe4 {[%clk
00:00:54]} {[%emt 00:00:02]} Kg6 {[%clk 00:00:53]} {[%emt 00:00:06]} 42. Kf3
{[%clk 00:00:31]} {[%emt 00:00:27]} Kh5 {[%clk 00:00:53]} {[%emt 00:00:05]} 43.
Ke4 {[%clk 00:00:28]} {[%emt 00:00:08]} Ra2 {[%clk 00:00:53]} {[%emt 00:00:05]}
44. Rf3 {[%clk 00:00:29]} {[%emt 00:00:04]} Kh4 {[%clk 00:00:47]} {[%emt
00:00:11]} 45. Kf5 {[%clk 00:00:27]} {[%emt 00:00:07]} h5 {[%clk 00:00:35]}
{[%emt 00:00:17]} 46. Ke4 {[%clk 00:00:08]} {[%emt 00:00:23]} Re2+ {[%clk
00:00:32]} {[%emt 00:00:08]} 47. Kd3 {[%clk 00:00:12]} {[%emt 00:00:01]} Ra2
{[%clk 00:00:34]} {[%emt 00:00:03]} 48. Kc4 {[%clk 00:00:13]} {[%emt 00:00:04]}
g4 {[%clk 00:00:34]} {[%emt 00:00:05]} 49. hxg4 {[%clk 00:00:17]} {[%emt
00:00:01]} Kxg4 {[%clk 00:00:35]} {[%emt 00:00:04]} 50. Rf8 {[%clk 00:00:18]}
{[%emt 00:00:03]} h4 {[%clk 00:00:37]} {[%emt 00:00:03]} 51. Kb4 {[%clk
00:00:19]} {[%emt 00:00:03]} h3 {[%clk 00:00:37]} {[%emt 00:00:04]} 52. f3
{[%clk 00:00:22]} {[%emt 00:00:02]} Kg3 {[%clk 00:00:34]} {[%emt 00:00:09]} 53.
Rh8 {[%clk 00:00:17]} {[%emt 00:00:10]} Rf2 {[%clk 00:00:33]} {[%emt 00:00:05]}
54. a4 {[%clk 00:00:17]} {[%emt 00:00:05]} Rxf3 {[%clk 00:00:36]} {[%emt
00:00:02]} 55. a5 {[%clk 00:00:19]} {[%emt 00:00:03]} Rf4+ {[%clk 00:00:41]}
{[%emt 00:00:01]} 56. Kb5 {[%clk 00:00:23]} {[%emt 00:00:01]} Rh4 {[%clk
00:00:43]} {[%emt 00:00:03]} 57. Rd8 {[%clk 00:00:15]} {[%emt 00:00:12]} h2
{[%clk 00:00:46]} {[%emt 00:00:02]} 58. Rd1 {[%clk 00:00:19]} {[%emt 00:00:01]}
h1=Q {[%clk 00:00:40]} {[%emt 00:00:12]} 59. Rxh1 {[%clk 00:00:22]} {[%emt
00:00:01]} Rxh1 {[%clk 00:00:44]} {[%emt 00:00:01]} 60. a6 {[%clk 00:00:20]}
{[%emt 00:00:07]} Kf4 {[%clk 00:00:48]} {[%emt 00:00:01]} 61. Kb6 {[%clk
00:00:19]} {[%emt 00:00:05]} Ke5 {[%clk 00:00:50]} {[%emt 00:00:03]} 62. a7
{[%clk 00:00:24]} Ra1 {[%clk 00:00:50]} {[%emt 00:00:03]} 63. Kb7 {[%clk
00:00:27]} {[%emt 00:00:03]} Rxa7+ {[%emt 00:00:04]} 1/2-1/2

[Event "MČR v rapid šachu družstev 2019"]
[Site "Teplice, Czech Republic"]
[Date "2019.09.15"]
[Round "8.12"]
[White "Krejci, Jan"]
[Black "Cech, Pavel"]
[Result "1/2-1/2"]
[TimeControl "15 min. + 5s"]
[WhiteElo "2496"]
[BlackElo "2394"]

1. Nf3 {[%clk 00:15:09]} {[%emt 00:00:01]} d5 {[%clk 00:15:08]} {[%emt
00:00:02]} 2. c4 {[%clk 00:15:12]} {[%emt 00:00:02]} c6 {[%clk 00:15:11]}
{[%emt 00:00:02]} 3. g3 {[%clk 00:15:14]} {[%emt 00:00:03]} Nf6 {[%clk
00:15:10]} {[%emt 00:00:06]} 4. b3 {[%clk 00:15:17]} {[%emt 00:00:03]} Bf5
{[%clk 00:15:11]} {[%emt 00:00:04]} 5. Bb2 {[%clk 00:15:20]} {[%emt 00:00:02]}
e6 {[%clk 00:15:11]} {[%emt 00:00:04]} 6. Bg2 {[%clk 00:15:24]} {[%emt
00:00:02]} Be7 {[%clk 00:15:09]} {[%emt 00:00:07]} 7. d3 {[%clk 00:15:21]}
{[%emt 00:00:08]} h6 {[%clk 00:15:11]} {[%emt 00:00:03]} 8. O-O {[%clk
00:15:24]} {[%emt 00:00:02]} O-O {[%clk 00:15:14]} {[%emt 00:00:02]} 9. Nbd2
{[%clk 00:15:22]} {[%emt 00:00:08]} Nbd7 {[%clk 00:15:14]} {[%emt 00:00:04]} 10.
Qc2 {[%clk 00:14:48]} {[%emt 00:00:39]} Bh7 {[%clk 00:15:06]} {[%emt 00:00:13]}
11. Rac1 {[%clk 00:14:46]} {[%emt 00:00:07]} a5 {[%clk 00:15:07]} {[%emt
00:00:04]} 12. a3 {[%clk 00:14:42]} {[%emt 00:00:09]} Qb6 {[%clk 00:14:24]}
{[%emt 00:00:48]} 13. Rb1 {[%clk 00:14:06]} {[%emt 00:00:41]} Qa6 {[%clk
00:14:17]} {[%emt 00:00:12]} 14. Qc1 {[%clk 00:13:46]} {[%emt 00:00:25]} Rfe8
{[%clk 00:13:52]} {[%emt 00:00:30]} 15. Bc3 {[%clk 00:13:42]} {[%emt 00:00:09]}
b5 {[%clk 00:13:30]} {[%emt 00:00:28]} 16. Ne5 {[%clk 00:13:06]} {[%emt
00:00:40]} Nxe5 {[%clk 00:12:10]} {[%emt 00:01:26]} 17. Bxe5 {[%clk 00:13:09]}
{[%emt 00:00:03]} Nd7 {[%clk 00:11:33]} {[%emt 00:00:41]} 18. Bc3 {[%clk
00:12:44]} {[%emt 00:00:31]} b4 {[%clk 00:11:03]} {[%emt 00:00:35]} 19. axb4
{[%clk 00:12:23]} {[%emt 00:00:25]} axb4 {[%clk 00:11:00]} {[%emt 00:00:08]}
1/2-1/2